bitfinex-derivatives/quotes_BTCF0:USTF0_20250814
["timestamp","ask_amount","ask_price","bid_price","bid_amount"]
[1755215225704,1.03130984,118530.0,118520.0,0.47888]
[1755215226009,1.03130984,118530.0,118520.0,1.46755984]
[1755215226010,0.02812,118530.0,118520.0,1.46755984]
[1755215227410,1.01679984,118530.0,118520.0,0.47888]
[1755215229006,1.01379984,118530.0,118520.0,0.47888]
[1755215229207,1.01679984,118530.0,118520.0,0.47888]
[1755215229708,1.02649984,118530.0,118520.0,0.47888]
[1755215229913,1.02649984,118530.0,118520.0,0.54741101]
[1755215231914,0.03782,118530.0,118520.0,0.54741101]
[1755215232100,1.01379984,118530.0,118520.0,0.54741101]
[1755215232414,1.01379984,118530.0,118520.0,1.53609085]
[1755215232712,1.01679984,118530.0,118520.0,1.53609085]
[1755215232911,1.02649984,118530.0,118520.0,1.53609085]
[1755215233711,1.01858237,118540.0,118520.0,1.63478975]
[1755215234014,0.08363253,118540.0,118530.0,1.25548]
[1755215234407,0.05983253,118540.0,118530.0,2.24415984]
[1755215234612,1.04851237,118540.0,118530.0,2.24415984]
[1755215234912,1.04851237,118540.0,118530.0,1.25548]
[1755215235900,1.02160984,118540.0,118530.0,1.25548]
[1755215236105,1.02160984,118540.0,118530.0,2.26294271]
[1755215236610,0.98867984,118540.0,118530.0,2.26294271]
[1755215236810,0.98867984,118540.0,118530.0,2.34725111]
[1755215237314,8.01812592,118550.0,118530.0,2.34725111]
[1755215237504,8.04192592,118550.0,118540.0,0.06993]
[1755215237713,8.04192592,118550.0,118540.0,0.11808]
[1755215238314,8.01812592,118550.0,118540.0,0.11808]
[1755215238514,8.00137984,118550.0,118540.0,0.11808]
[1755215239117,8.00137984,118550.0,118540.0,0.47888]
[1755215240210,8.02517984,118550.0,118540.0,0.47888]
[1755215241715,8.02517984,118550.0,118540.0,0.48724883]
[1755215242217,8.02517984,118550.0,118540.0,0.47888]
[1755215242918,7.0365,118550.0,118540.0,0.47888]
[1755215243317,8.02517984,118550.0,118540.0,0.47888]
[1755215245121,8.00137984,118550.0,118540.0,0.48037]
[1755215245310,8.02464984,118550.0,118540.0,0.48037]
[1755215245919,7.03597,118550.0,118540.0,1.46904984]
[1755215246419,8.02464984,118550.0,118540.0,0.48876506]
[1755215254634,8.00137984,118550.0,118540.0,0.44097506]
[1755215254838,8.02464984,118550.0,118540.0,1.4794549]
[1755215255436,8.02464984,118550.0,118540.0,0.49077506]
[1755215255839,7.0,118550.0,118540.0,1.5637561]
[1755215256030,7.003,118550.0,118540.0,2.3399561]
[1755215256340,7.0127,118550.0,118540.0,2.3399561]
[1755215256934,7.003,118550.0,118540.0,2.3399561]
[1755215257138,7.0127,118550.0,118540.0,2.3399561]
[1755215257330,7.003,118550.0,118540.0,2.4399561]
[1755215257528,7.0,118550.0,118540.0,2.4399561]
[1755215258236,7.0,118550.0,118540.0,2.4409561]
[1755215258628,7.003,118550.0,118540.0,2.4409561]
[1755215259538,7.0127,118550.0,118540.0,2.4409561]
[1755215260742,7.0,118550.0,118540.0,2.4409561]
[1755215261536,7.003,118550.0,118540.0,2.4409561]
[1755215261735,7.0127,118550.0,118540.0,2.4409561]
[1755215263644,7.0,118550.0,118540.0,2.4409561]
[1755215264036,7.0127,118550.0,118540.0,2.4409561]
[1755215264738,7.03597,118550.0,118540.0,2.4409561]
[1755215267948,7.0127,118550.0,118540.0,2.4409561]
[1755215268547,7.03597,118550.0,118540.0,2.4409561]
[1755215269054,7.03597,118550.0,118540.0,1.45227626]
[1755215269242,7.03597,118550.0,118540.0,2.4409561]
[1755215272751,7.0127,118550.0,118540.0,2.4409561]
[1755215273641,7.003,118550.0,118540.0,2.7096681]
[1755215274041,7.0127,118550.0,118540.0,2.7096681]
[1755215277737,7.0127,118550.0,118540.0,2.5409561]
[1755215280051,7.0127,118550.0,118540.0,3.7069561]
[1755215281655,7.0361,118550.0,118540.0,3.7069561]
[1755215282456,7.0361,118550.0,118540.0,2.71827626]
[1755215282652,7.0361,118550.0,118540.0,3.7069561]
[1755215285957,7.0,118550.0,118540.0,3.7069561]
[1755215286153,4.63217746,118550.0,118540.0,4.69563594]
[1755215286650,4.63217746,118550.0,118540.0,3.7069561]
[1755215286651,4.63517746,118550.0,118540.0,3.7069561]
[1755215286855,4.64487746,118550.0,118540.0,3.7069561]
[1755215289556,4.63217746,118550.0,118540.0,4.95853594]
[1755215289758,4.63217746,118550.0,118540.0,5.12724794]
[1755215291352,4.63217746,118550.0,118540.0,5.27809509]
[1755215292163,4.63217746,118550.0,118540.0,5.12724794]
[1755215292655,2.63217746,118550.0,118540.0,5.12724794]
[1755215294062,2.63217746,118550.0,118540.0,5.26734794]
[1755215294761,2.63517746,118550.0,118540.0,5.26734794]
[1755215299466,2.63517746,118550.0,118540.0,5.41819509]
[1755215303664,2.64487746,118550.0,118540.0,5.41819509]
[1755215304463,2.63217746,118550.0,118540.0,5.41819509]
[1755215305167,2.63217746,118550.0,118540.0,5.26734794]
[1755215305367,2.63517746,118550.0,118540.0,5.26734794]
[1755215306071,2.63517746,118550.0,118540.0,5.41819509]
[1755215307671,1.54246783,118550.0,118540.0,5.26734794]
[1755215308268,1.55516783,118550.0,118540.0,5.26734794]
[1755215308859,1.55516783,118550.0,118540.0,4.2786681]
[1755215311762,1.55516783,118550.0,118540.0,4.1099561]
[1755215312970,0.0097,118570.0,118560.0,0.084287]
[1755215313170,0.04786144,118570.0,118560.0,3.87826668]
[1755215313669,0.04866144,118570.0,118560.0,2.88954684]
[1755215314174,0.04866144,118570.0,118560.0,3.02964684]
[1755215314471,0.04866144,118570.0,118560.0,3.03064684]
[1755215315366,0.04866144,118570.0,118560.0,4.01932668]
[1755215315566,0.04866144,118570.0,118560.0,3.03064684]
[1755215315761,0.04866144,118570.0,118560.0,1.266407]
[1755215315966,0.04866144,118570.0,118560.0,3.03060684]
[1755215316170,1.03734128,118570.0,118560.0,1.91127984]
[1755215316376,1.03734128,118570.0,118560.0,2.3226]
[1755215316782,1.03734128,118570.0,118560.0,3.09812]
[1755215317076,1.03734128,118570.0,118560.0,3.12265]
[1755215317572,1.03734128,118570.0,118560.0,2.3226]
[1755215317872,1.03734128,118570.0,118560.0,2.2226]
[1755215318074,1.03734128,118570.0,118560.0,1.49812]
[1755215318271,1.03734128,118570.0,118560.0,1.47393]
[1755215318975,1.05463997,118570.0,118560.0,1.47393]
[1755215320574,1.05463997,118570.0,118560.0,1.47389]
[1755215323377,1.05463997,118570.0,118560.0,0.69841]
[1755215323677,1.05463997,118570.0,118560.0,1.11313]
[1755215323678,2.04331981,118570.0,118560.0,1.11313]
[1755215324277,2.04331981,118570.0,118560.0,0.33761]
[1755215324466,1.05463997,118570.0,118560.0,1.11313]
[1755215325278,2.04251981,118570.0,118560.0,1.13732]
[1755215325472,2.04251981,118570.0,118560.0,0.77352]
[1755215326479,1.05383997,118570.0,118560.0,0.77352]
[1755215326868,2.04251981,118570.0,118560.0,0.77352]
[1755215327871,1.05383997,118570.0,118560.0,0.77352]
[1755215328380,1.05383997,118570.0,118560.0,0.79805]
[1755215328876,2.01684981,118570.0,118560.0,0.02453]
[1755215329174,2.01684981,118570.0,118560.0,0.77552]
[1755215329974,0.03949013,118570.0,118560.0,0.80005]
[1755215330169,1.02816997,118570.0,118560.0,0.80005]
[1755215332879,1.01087128,118570.0,118560.0,0.80005]
[1755215333576,1.01087128,118570.0,118560.0,0.80952]
[1755215333884,1.01087128,118570.0,118560.0,0.85634]
[1755215336385,0.02219144,118570.0,118560.0,0.87284]
[1755215336585,1.01087128,118570.0,118560.0,0.87284]
[1755215336880,0.02219144,118570.0,118560.0,0.89494]
[1755215337083,1.01087128,118570.0,118560.0,0.89494]
[1755215337986,1.01087128,118570.0,118560.0,1.25574]
[1755215342476,1.01087128,118570.0,118560.0,0.4334]
[1755215342778,1.99955112,118570.0,118560.0,0.80549]
[1755215344279,1.99955112,118570.0,118560.0,0.02453]
[1755215344484,1.99955112,118570.0,118560.0,0.80549]
[1755215344682,2.16823112,118570.0,118560.0,0.78096]
[1755215345087,2.16823112,118570.0,118560.0,0.8036]
[1755215345782,1.99955112,118570.0,118560.0,0.8036]
[1755215346084,2.36035112,118570.0,118560.0,0.8036]
[1755215346475,2.52903112,118570.0,118560.0,0.78064]
[1755215347588,2.53729526,118570.0,118560.0,0.78064]
[1755215347789,2.53729526,118570.0,118560.0,0.80328]
[1755215347991,2.53729526,118570.0,118560.0,0.02264]
[1755215350086,2.53729526,118570.0,118550.0,0.80308]
[1755215350292,1.97735968,118560.0,118550.0,0.80308]
[1755215350996,1.97735968,118560.0,118550.0,0.87886]
[1755215351291,1.97735968,118560.0,118550.0,0.89992]
[1755215351790,1.97735968,118560.0,118550.0,0.90192]
[1755215352195,1.97735968,118560.0,118550.0,0.89992]
[1755215352394,1.97835968,118560.0,118550.0,0.89992]
[1755215353195,1.97835968,118560.0,118550.0,0.8992]
[1755215355093,0.001,118560.0,118550.0,0.85014]
[1755215355298,1.97835968,118560.0,118550.0,1.26]
[1755215366497,0.98967984,118560.0,118550.0,1.26]
[1755215372699,0.001,118560.0,118550.0,1.26]
[1755215372898,0.98967984,118560.0,118550.0,1.26]
[1755215376202,1.97835968,118560.0,118550.0,1.26]
[1755215378403,1.97915968,118560.0,118550.0,0.80444]
[1755215378899,1.97915968,118560.0,118550.0,0.85112]
[1755215379100,1.97915968,118560.0,118550.0,0.90064]
[1755215387503,0.0018,118560.0,118550.0,0.90064]
[1755215387709,1.97835968,118560.0,118550.0,0.90064]
[1755215394213,1.97835968,118560.0,118550.0,1.26144]
[1755215395013,1.97835968,118560.0,118550.0,0.90064]
[1755215402518,0.98967984,118560.0,118550.0,0.90064]
[1755215403019,1.97835968,118560.0,118550.0,0.90064]
[1755215405231,0.98967984,118560.0,118550.0,0.90064]
[1755215406731,0.98967984,118560.0,118550.0,1.26144]
[1755215406936,0.98967984,118560.0,118550.0,2.43441394]
[1755215406937,0.001,118560.0,118550.0,2.43441394]
[1755215407130,0.98967984,118560.0,118550.0,2.43441394]
[1755215408336,0.98967984,118560.0,118550.0,2.35011984]
[1755215408739,0.98967984,118560.0,118550.0,2.43441394]
[1755215408937,0.98967984,118560.0,118550.0,2.35011984]
[1755215409139,0.98867984,118560.0,118550.0,2.35211984]
[1755215409330,0.98867984,118560.0,118550.0,2.27995984]
[1755215409933,0.98867984,118560.0,118550.0,2.35300984]
[1755215410134,0.01684512,118580.0,118570.0,0.0475]
[1755215410331,1.00552496,118580.0,118570.0,1.26195]
[1755215411230,1.00652496,118580.0,118570.0,1.26195]
[1755215414740,0.01784512,118580.0,118570.0,1.26195]
[1755215415039,1.00652496,118580.0,118570.0,1.26195]
[1755215415440,0.01784512,118580.0,118570.0,1.26195]
[1755215415644,1.00652496,118580.0,118570.0,1.26195]
[1755215422236,1.00652496,118580.0,118570.0,1.62275]
[1755215425346,0.98967984,118580.0,118570.0,1.62275]
[1755215428144,0.98967984,118580.0,118570.0,2.61142984]
[1755215428541,0.001,118580.0,118570.0,2.61142984]
[1755215428742,0.98967984,118580.0,118570.0,2.61142984]
[1755215431952,0.98967984,118580.0,118570.0,1.62275]
[1755215433456,0.98967984,118580.0,118570.0,2.61142984]
[1755215434144,0.98967984,118580.0,118570.0,1.62275]
[1755215440552,0.98967984,118580.0,118570.0,0.84215]
[1755215440857,0.98967984,118580.0,118570.0,1.57244]
[1755215447461,0.98967984,118580.0,118570.0,0.80331]
[1755215448958,0.98967984,118580.0,118570.0,0.81312]
[1755215449158,0.98967984,118580.0,118570.0,0.86225]
[1755215449358,0.98967984,118580.0,118570.0,0.90014]
[1755215460767,0.001,118580.0,118570.0,1.26094]
[1755215460973,0.98967984,118580.0,118570.0,1.26094]
[1755215461373,0.98967984,118580.0,118570.0,0.90014]
[1755215465171,0.001,118580.0,118570.0,0.90014]
[1755215465376,0.98967984,118580.0,118570.0,0.90014]
[1755215469270,1.00680736,118580.0,118570.0,0.90014]
[1755215472580,0.98967984,118580.0,118570.0,0.90014]
[1755215475476,0.98967984,118580.0,118570.0,0.85359]
[1755215475975,0.98967984,118580.0,118570.0,0.9003]
[1755215476177,0.98967984,118580.0,118570.0,0.11854]
[1755215476375,1.35047984,118580.0,118570.0,0.90018]
[1755215482091,1.36725184,118580.0,118570.0,0.90018]
[1755215485582,1.36753811,118580.0,118570.0,0.90018]
[1755215490585,1.35047984,118580.0,118570.0,0.90018]
[1755215490885,1.3675577,118580.0,118570.0,0.90018]
[1755215492196,2.35623754,118580.0,118570.0,0.90081]
[1755215492495,1.3675577,118580.0,118570.0,0.90081]
[1755215494101,1.35047984,118580.0,118570.0,0.90081]
[1755215495197,2.35590629,118580.0,118570.0,0.78164]
[1755215495390,3.13922629,118580.0,118560.0,0.90322]
[1755215495591,1.97735968,118570.0,118560.0,0.87942]
[1755215496090,1.97735968,118570.0,118560.0,0.90322]
[1755215497404,1.97735968,118570.0,118560.0,0.85588]
[1755215497599,2.33815968,118570.0,118560.0,0.85588]
[1755215497903,2.34015968,118570.0,118560.0,0.90322]
[1755215499297,2.34215968,118570.0,118560.0,0.90322]
[1755215499802,2.34215968,118570.0,118560.0,0.11978]
[1755215501007,0.3648,118570.0,118560.0,0.11978]
[1755215501308,2.34215968,118570.0,118560.0,0.11978]
[1755215504205,0.3656,118570.0,118540.0,0.0238]
[1755215504408,0.37763886,118550.0,118540.0,0.03358]
[1755215504602,1.3663187,118550.0,118540.0,0.03358]
[1755215504799,1.3663187,118550.0,118540.0,0.11978]
[1755215505199,1.3663187,118550.0,118540.0,0.03358]
[1755215506105,2.1704387,118550.0,118540.0,0.0238]
[1755215506402,2.1704387,118550.0,118530.0,0.09598]
[1755215506403,0.04008,118540.0,118530.0,0.09598]
[1755215506610,2.37823968,118540.0,118530.0,0.00978]
[1755215507012,1.36611984,118540.0,118520.0,0.95199101]
[1755215507207,0.41778191,118530.0,118520.0,0.96843101]
[1755215507513,1.40646175,118530.0,118520.0,0.96843101]
[1755215508014,1.41501376,118530.0,118520.0,0.96843101]
[1755215508209,2.4036936,118530.0,118520.0,0.9237]
[1755215508712,2.4036936,118530.0,118520.0,0.11978]
[1755215508713,1.15145314,118530.0,118520.0,0.11978]
[1755215509712,1.15345314,118530.0,118520.0,0.11978]
[1755215512415,1.15345314,118530.0,118520.0,0.07244]
[1755215512610,0.04008,118520.0,118510.0,0.92522]
[1755215512919,1.12599922,118520.0,118510.0,0.92522]
[1755215514009,1.12699922,118520.0,118510.0,0.92522]
[1755215520519,0.40188,118520.0,118510.0,0.92522]
[1755215520921,1.12699922,118520.0,118510.0,0.92522]
[1755215521417,0.76619922,118520.0,118510.0,0.92522]
[1755215521718,0.74275922,118520.0,118510.0,0.92522]
[1755215526125,0.74275922,118520.0,118510.0,0.9267]
[1755215528525,0.72611922,118520.0,118510.0,0.9267]
[1755215528818,1.74108466,118520.0,118510.0,0.9267]
[1755215529726,1.74108466,118520.0,118510.0,0.86981]
[1755215532027,1.75750466,118520.0,118510.0,0.86981]
[1755215533726,1.78130466,118520.0,118510.0,0.86981]
[1755215535326,1.80402723,118520.0,118510.0,0.86981]
[1755215545433,0.04122,118520.0,118510.0,0.86981]
[1755215545632,1.78130466,118520.0,118510.0,0.86981]
[1755215546232,1.80404444,118520.0,118510.0,0.86981]
[1755215546741,2.16484444,118520.0,118510.0,0.86981]
[1755215548340,2.14210466,118520.0,118510.0,0.86981]
[1755215552844,0.40202,118520.0,118510.0,0.86981]
[1755215553041,2.14210466,118520.0,118510.0,0.86981]
[1755215554553,0.40202,118520.0,118510.0,0.86981]
[1755215554740,2.14210466,118520.0,118510.0,0.86981]
[1755215555942,1.78130466,118520.0,118510.0,0.86981]
[1755215558444,0.91126233,118520.0,118510.0,0.86981]
[1755215558649,1.78130466,118520.0,118510.0,0.86981]
[1755215560348,0.04122,118520.0,118510.0,0.86981]
[1755215560652,1.78130466,118520.0,118510.0,0.86981]
[1755215563857,1.78330466,118520.0,118510.0,0.86981]
[1755215564457,0.04322,118520.0,118510.0,0.86981]
[1755215564646,1.78330466,118520.0,118510.0,0.86981]
[1755215566657,0.04322,118520.0,118510.0,0.86981]
[1755215567056,1.78330466,118520.0,118510.0,0.86981]
[1755215569257,0.04322,118520.0,118510.0,0.86981]
[1755215569458,1.78330466,118520.0,118510.0,0.86981]
[1755215571760,0.04322,118520.0,118510.0,0.86981]
[1755215571969,1.78330466,118520.0,118510.0,0.87804604]
[1755215572258,1.78330466,118520.0,118510.0,0.86981]
[1755215574454,0.04322,118520.0,118510.0,0.86981]
[1755215574654,1.78330466,118520.0,118510.0,0.86981]
[1755215576860,1.78230466,118520.0,118510.0,0.86981]
[1755215579354,0.04222,118520.0,118510.0,0.86981]
[1755215579554,1.78230466,118520.0,118510.0,0.86981]
[1755215580755,1.78230466,118520.0,118510.0,0.80544]
[1755215580959,1.78230466,118520.0,118510.0,0.86959]
[1755215581459,1.78230466,118520.0,118510.0,0.82967]
[1755215581660,0.04222,118520.0,118510.0,0.82967]
[1755215581851,1.78230466,118520.0,118510.0,0.82967]
[1755215584063,1.78230466,118520.0,118510.0,0.83932]
[1755215584261,1.78230466,118520.0,118510.0,0.85365]
[1755215584564,2.14310466,118520.0,118510.0,0.85365]
[1755215585463,2.14310466,118520.0,118510.0,0.00965]
[1755215585652,0.03985,118500.0,118490.0,0.04821]
[1755215585857,0.90989233,118500.0,118490.0,0.06415]
[1755215586054,1.27069233,118500.0,118490.0,0.86843]
[1755215586556,1.27069233,118500.0,118490.0,0.86855]
[1755215587261,1.27069233,118500.0,118490.0,0.87055]
[1755215588169,1.27269233,118500.0,118490.0,0.86855]
[1755215588465,1.27269233,118500.0,118490.0,0.8044]
[1755215589368,1.27269233,118500.0,118490.0,0.85261]
[1755215589565,1.27269233,118500.0,118490.0,0.88703]
[1755215589767,1.27269233,118500.0,118490.0,0.92525]
[1755215591167,0.91189233,118500.0,118490.0,0.92525]
[1755215591467,0.88809233,118500.0,118490.0,0.92525]
[1755215594270,0.91189233,118500.0,118490.0,0.92525]
[1755215594466,1.27269233,118500.0,118490.0,0.92525]
[1755215596166,0.40265,118500.0,118490.0,0.92525]
[1755215596471,1.24889233,118500.0,118490.0,0.92525]
[1755215598969,1.27269233,118500.0,118490.0,0.92525]
[1755215606583,0.04185,118500.0,118490.0,0.92525]
[1755215606881,0.87204233,118500.0,118490.0,0.92525]
[1755215607087,0.87204233,118500.0,118490.0,1.28605]
[1755215608889,0.002,118500.0,118490.0,1.28605]
[1755215609091,0.87204233,118500.0,118490.0,1.28605]
[1755215610583,0.87004233,118500.0,118490.0,1.28605]
[1755215613496,0.88633233,118500.0,118490.0,1.28605]
[1755215613994,0.01629,118500.0,118490.0,1.28605]
[1755215614296,0.88633233,118500.0,118490.0,1.28605]
[1755215616099,0.01629,118510.0,118500.0,0.06926]
[1755215616393,0.01629,118510.0,118500.0,0.47924]
[1755215616394,0.88633233,118510.0,118500.0,0.47924]
[1755215618796,0.88733233,118510.0,118500.0,0.47924]
[1755215618994,0.91113233,118510.0,118500.0,0.47924]
[1755215624795,0.91213233,118510.0,118500.0,0.47924]
[1755215626594,0.88833233,118510.0,118500.0,0.47924]
[1755215630105,0.91213233,118510.0,118500.0,0.47924]
[1755215630511,0.04209,118510.0,118500.0,0.47924]
[1755215630706,0.91213233,118510.0,118500.0,0.47924]
[1755215631208,0.04209,118510.0,118500.0,0.47924]
[1755215631399,0.91213233,118510.0,118500.0,0.47924]
[1755215638404,0.04209,118510.0,118500.0,0.47924]
[1755215638610,0.91213233,118510.0,118500.0,0.47924]
[1755215657825,0.04209,118510.0,118500.0,0.47924]
[1755215658026,0.91213233,118510.0,118500.0,0.47924]
[1755215691260,0.91213233,118510.0,118500.0,0.43251]
[1755215691463,0.91213233,118510.0,118500.0,0.48053]
[1755215697573,0.91213233,118510.0,118500.0,0.39278]
[1755215697768,1.24913233,118510.0,118480.0,0.37]
[1755215697973,0.03915,118500.0,118490.0,0.82878]
[1755215698174,0.90919233,118500.0,118490.0,0.87563]
[1755215699476,0.90919233,118500.0,118490.0,0.89883]
[1755215699673,0.91019233,118500.0,118490.0,0.91421]
[1755215701477,1.27099233,118500.0,118490.0,0.91421]
[1755215701879,0.03915,118490.0,118480.0,0.11741]
[1755215702073,2.14003466,118490.0,118480.0,0.03198]
[1755215702274,2.14003466,118490.0,118480.0,0.81814]
[1755215703179,2.14003466,118490.0,118480.0,0.79536]
[1755215703770,0.03915,118480.0,118470.0,0.87395]
[1755215703973,1.78747136,118480.0,118470.0,0.91253]
[1755215704273,0.03915,118460.0,118450.0,0.82682]
[1755215704476,1.77923466,118460.0,118450.0,0.82682]
[1755215705079,0.90919233,118460.0,118450.0,0.87367]
[1755215705778,0.90919233,118460.0,118450.0,0.87667]
[1755215706386,0.90919233,118460.0,118450.0,0.87767]
[1755215706776,0.76499353,118460.0,118450.0,0.87767]
[1755215706978,0.76499353,118460.0,118450.0,0.90087]
[1755215707173,0.76499353,118460.0,118450.0,0.90059]
[1755215707980,0.76499353,118460.0,118450.0,0.91597]
[1755215709888,0.03915,118460.0,118450.0,0.91597]
[1755215710793,0.76499353,118460.0,118450.0,0.91597]
[1755215710989,0.03915,118460.0,118450.0,0.91597]
[1755215712384,0.76499353,118460.0,118450.0,0.91597]
[1755215713180,0.03915,118460.0,118450.0,0.91597]
[1755215713379,0.76499353,118460.0,118450.0,0.91597]
[1755215714384,0.03915,118460.0,118450.0,0.91597]
[1755215716893,0.76499353,118460.0,118450.0,0.91597]
[1755215717286,0.03915,118460.0,118450.0,0.91597]
[1755215719697,0.01535,118460.0,118450.0,0.91597]
[1755215719899,0.74119353,118460.0,118450.0,0.91597]
[1755215722297,0.76499353,118460.0,118450.0,0.91597]
[1755215725001,0.74119353,118460.0,118450.0,0.91597]
[1755215726794,0.88627039,118460.0,118450.0,0.91597]
[1755215731803,0.91007039,118460.0,118450.0,0.91597]
[1755215732308,0.93284062,118460.0,118450.0,0.91597]
[1755215733107,0.91007039,118460.0,118450.0,0.91597]
[1755215733310,0.06193176,118460.0,118450.0,0.91597]
[1755215733514,0.93285215,118460.0,118450.0,0.91597]
[1755215734108,0.93317215,118460.0,118450.0,0.91802]
[1755215737317,1.29397215,118460.0,118450.0,0.12346]
[1755215737822,1.27830215,118460.0,118450.0,0.10744]
[1755215738015,2.06842215,118460.0,118450.0,0.12346]
[1755215739024,2.13459899,118460.0,118450.0,0.12346]
[1755215742628,0.03947,118440.0,118430.0,0.07152]
[1755215742818,2.95761254,118440.0,118430.0,0.11705]
[1755215744228,2.95861254,118440.0,118430.0,0.11705]
[1755215746116,2.95961254,118440.0,118430.0,0.11705]
[1755215747624,2.95961254,118440.0,118430.0,0.0001]
[1755215747824,3.32041254,118440.0,118430.0,0.0001]
[1755215749527,0.91039039,118430.0,118420.0,0.02419]
[1755215749723,1.29397215,118430.0,118420.0,0.02419]
[1755215750119,1.29397215,118430.0,118400.0,0.3608]
[1755215750329,1.78131078,118410.0,118400.0,0.11695]
[1755215750529,1.27119039,118410.0,118400.0,0.11695]
[1755215751731,0.91039039,118410.0,118400.0,0.11695]
[1755215751931,0.91039039,118410.0,118400.0,0.11895]
[1755215752538,0.91039039,118410.0,118400.0,0.11695]
[1755215752732,0.64479679,118410.0,118400.0,0.11895]
[1755215753629,0.03947,118410.0,118400.0,0.11895]
[1755215753830,1.00559679,118410.0,118400.0,0.11895]
[1755215754733,0.64479679,118410.0,118400.0,0.11895]
[1755215754933,1.00559679,118410.0,118400.0,0.11895]
[1755215757443,0.40027,118410.0,118400.0,0.11895]
[1755215757643,0.64479679,118410.0,118400.0,0.11895]
[1755215758343,1.00559679,118410.0,118400.0,0.002]
[1755215758843,1.00559679,118410.0,118400.0,0.03523]
[1755215759046,1.00559679,118410.0,118400.0,0.08483]
[1755215759246,1.00559679,118410.0,118400.0,0.0502]
[1755215759441,1.00559679,118410.0,118400.0,0.002]
[1755215761745,1.00559679,118410.0,118400.0,0.001]
[1755215762444,0.04,118400.0,118390.0,0.12107]
[1755215762650,1.00612679,118400.0,118390.0,0.12107]
[1755215764150,1.00612679,118400.0,118390.0,0.12207]
[1755215765046,1.00612679,118400.0,118390.0,0.12307]
[1755215765242,1.00612679,118400.0,118390.0,0.05829]
[1755215766743,1.80504679,118400.0,118390.0,0.05829]
[1755215766948,1.80504679,118400.0,118390.0,0.07326]
[1755215767148,1.80504679,118400.0,118390.0,0.10789]
[1755215767851,2.41037358,118400.0,118390.0,0.002]
[1755215768358,2.43316237,118400.0,118390.0,0.002]
[1755215769350,2.43316237,118400.0,118390.0,0.001]
[1755215769752,2.49989947,118400.0,118370.0,0.10589]
[1755215769952,1.00612679,118380.0,118370.0,0.12107]
[1755215770146,1.80412679,118380.0,118370.0,0.12107]
[1755215771654,1.80412679,118380.0,118370.0,0.12207]
[1755215772754,1.80412679,118380.0,118370.0,0.07347]
[1755215773054,1.80412679,118380.0,118370.0,0.03523]
[1755215773251,1.58239808,118380.0,118370.0,0.002]
[1755215773458,2.18772487,118380.0,118370.0,0.002]
[1755215773647,2.18772487,118380.0,118370.0,0.001]
[1755215774153,2.18772487,118380.0,118370.0,0.002]
[1755215774747,2.18772487,118380.0,118370.0,0.001]
[1755215775357,2.18772487,118380.0,118350.0,0.10589]
[1755215775657,0.64532679,118360.0,118350.0,0.12107]
[1755215776652,0.04,118360.0,118350.0,0.12207]
[1755215776957,0.62152679,118360.0,118350.0,0.48287]
[1755215777955,0.62152679,118360.0,118350.0,0.48487]
[1755215778456,0.62152679,118360.0,118350.0,0.48387]
[1755215778751,0.62152679,118360.0,118350.0,0.48487]
[1755215779454,0.64532679,118360.0,118350.0,0.12407]
[1755215780449,0.64532679,118360.0,118350.0,0.12307]
[1755215780650,0.96612679,118370.0,118350.0,0.48487]
[1755215780850,1.00499578,118370.0,118360.0,0.12107]
[1755215781446,1.02879578,118370.0,118360.0,0.12107]
[1755215782056,0.62799578,118370.0,118360.0,0.48187]
[1755215782253,0.64419578,118370.0,118360.0,0.48187]
[1755215782653,0.66799578,118370.0,118360.0,0.48187]
[1755215783456,0.3608,118410.0,118360.0,1.5874536]
[1755215783653,0.65376135,118400.0,118390.0,0.48187]
[1755215783851,0.66800207,118400.0,118390.0,0.48187]
[1755215784247,0.66800207,118400.0,118390.0,0.12107]
[1755215784459,0.06267528,118400.0,118390.0,0.12107]
[1755215784759,0.66800207,118400.0,118390.0,0.12107]
[1755215784958,0.67100207,118400.0,118390.0,0.12107]
[1755215785160,0.06567528,118400.0,118390.0,0.12107]
[1755215785458,0.67300207,118400.0,118390.0,0.12107]
[1755215787261,0.64920207,118400.0,118390.0,0.12107]
[1755215787560,0.06763528,118400.0,118390.0,0.12107]
[1755215787760,0.67296207,118400.0,118390.0,0.12107]
[1755215797768,1.03376207,118400.0,118390.0,0.12107]
[1755215799264,0.02376,118390.0,118380.0,0.86111]
[1755215799469,0.64476679,118390.0,118380.0,0.05531]
[1755215799667,0.64476679,118390.0,118370.0,1.166]
[1755215799668,0.98180679,118390.0,118370.0,0.8675]
[1755215799866,0.64476679,118380.0,118370.0,0.89759]
[1755215800268,0.64476679,118380.0,118370.0,0.92246]
[1755215801266,0.02376,118370.0,118360.0,0.10143]
[1755215801471,0.64476679,118370.0,118360.0,0.11726]
[1755215802369,1.00656679,118370.0,118360.0,0.11726]
[1755215803170,0.98280679,118370.0,118350.0,0.03044]
[1755215803370,0.64476679,118360.0,118350.0,0.11726]
[1755215803575,1.00556679,118360.0,118350.0,0.11726]
[1755215804280,0.40024,118360.0,118350.0,0.11726]
[1755215804475,1.00556679,118360.0,118350.0,0.11726]
[1755215806270,1.00556679,118360.0,118320.0,0.3608]
[1755215806271,0.01568,118350.0,118320.0,0.3608]
[1755215806471,0.03944,118320.0,118310.0,0.11726]
[1755215806667,1.00556679,118320.0,118310.0,0.11726]
[1755215807374,0.40024,118320.0,118310.0,0.11726]
[1755215807583,1.00556679,118320.0,118310.0,0.11726]
[1755215807876,0.98180679,118320.0,118310.0,0.12026]
[1755215808083,0.37648,118320.0,118310.0,0.93018]
[1755215808380,0.64476679,118320.0,118310.0,0.93018]
[1755215808981,1.00556679,118320.0,118310.0,0.93018]
[1755215809775,0.98180679,118320.0,118310.0,0.93018]
[1755215809978,0.96612679,118330.0,118320.0,0.03186]
[1755215810184,1.00556679,118330.0,118320.0,0.11726]
[1755215811272,1.00556679,118330.0,118320.0,0.11826]
[1755215811670,1.00556679,118330.0,118320.0,0.11926]
[1755215812076,1.00556679,118330.0,118320.0,0.07314]
[1755215813882,1.00556679,118330.0,118320.0,0.09055288]
[1755215814185,0.40024,118330.0,118320.0,0.09062883]
[1755215814393,1.00556679,118330.0,118320.0,0.13985883]
[1755215814678,0.01568,118330.0,118320.0,0.13985883]
[1755215814870,0.62100679,118330.0,118320.0,0.13985883]